bitfinex/quotes_ETHUSD_20251215
["timestamp","ask_amount","ask_price","bid_price","bid_amount"]
[1765801226948,16.57659746,3154.1,3154.0,0.001]
[1765801227877,16.56672646,3154.1,3154.0,0.001]
[1765801228876,16.88565346,3154.1,3154.0,0.001]
[1765801229174,16.56829546,3154.1,3154.0,0.001]
[1765801230078,28.06120546,3154.1,3154.0,0.001]
[1765801230276,31.18563108,3154.1,3154.0,0.001]
[1765801230977,41.37984408,3154.1,3154.0,0.001]
[1765801231176,40.12350608,3154.1,3154.0,0.001]
[1765801231678,20.43839008,3154.1,3154.0,0.001]
[1765801231977,22.55691108,3154.1,3154.0,0.001]
[1765801232270,20.79435308,3154.1,3154.0,0.001]
[1765801232478,20.43705408,3154.1,3154.0,0.001]
[1765801233081,22.68145408,3154.1,3154.0,0.001]
[1765801233374,22.29749808,3154.1,3154.0,0.001]
[1765801234183,29.46693908,3154.1,3154.0,0.001]
[1765801234480,29.08411908,3154.1,3154.0,0.001]
[1765801234662,20.35372408,3154.1,3154.0,0.001]
[1765801234981,16.52341046,3154.1,3154.0,0.001]
[1765801235184,4.25315181,3154.1,3154.0,0.001]
[1765801237078,8.60179157,3154.1,3154.0,0.001]
[1765801238296,4.25315181,3154.1,3154.0,0.001]
[1765801238465,0.58047529,3154.0,3152.7,0.405504]
[1765801238670,0.01267307,3153.9,3152.9,0.405504]
[1765801239992,0.95225851,3153.8,3152.9,1.35776251]
[1765801240299,0.501,3153.7,3152.9,1.35776251]
[1765801240666,3.17097919,3153.6,3153.0,3.17158261]
[1765801240873,4.1232377,3153.6,3153.0,3.17158261]
[1765801241099,4.1232377,3153.6,3153.1,0.77009984]
[1765801241782,0.95225851,3153.6,3153.1,0.77009984]
[1765801242997,0.501,3153.5,3153.2,0.405504]
[1765801243297,0.501,3153.5,3153.2,1.35765673]
[1765801243712,0.501,3153.5,3153.2,0.405504]
[1765801243911,0.501,3153.5,3153.3,1.70400273]
[1765801245804,0.501,3153.5,3153.4,3.17118031]
[1765801246384,0.501,3153.6,3153.4,3.17118031]
[1765801247094,0.501,3153.6,3153.5,0.95211345]
[1765801247815,0.501,3153.6,3153.5,4.1231932]
[1765801247981,0.501,3153.6,3153.5,4.92782281]
[1765801248485,0.501,3153.6,3153.5,1.75674306]
[1765801249215,0.501,3153.6,3153.0,3.17156825]
[1765801249385,0.501,3153.6,3153.5,0.001]
[1765801249584,1.4532434,3153.6,3153.5,0.001]
[1765801250489,0.501,3153.6,3153.5,0.001]
[1765801260111,3.17069028,3153.9,3153.5,0.001]
[1765801260112,0.501,3153.9,3153.5,0.001]
[1765801260515,0.501,3153.9,3153.5,0.95308021]
[1765801261135,0.501,3153.9,3153.5,4.12411409]
[1765801261336,3.67171317,3153.9,3153.5,0.001]
[1765801261740,4.62390519,3153.9,3153.5,0.001]
[1765801261907,3.67091317,3153.9,3153.5,0.001]
[1765801262264,4.62310519,3153.9,3153.5,0.001]
[1765801262939,3.67091317,3153.9,3153.5,0.001]
[1765801263741,0.5002,3153.9,3153.5,0.001]
[1765801263913,3.67092734,3153.9,3153.5,0.001]
[1765801264539,0.5002,3153.9,3153.5,0.001]
[1765801265546,0.5002,3153.9,3153.6,0.95206208]
[1765801268016,0.5002,3153.9,3153.6,4.12296116]
[1765801276959,0.5002,3153.9,3153.6,7.29394035]
[1765801278875,0.5002,3153.9,3153.6,4.12296116]
[1765801279458,0.5022,3153.9,3153.6,4.12296116]
[1765801279636,0.5022,3153.9,3153.6,4.97002308]
[1765801279824,0.002,3153.9,3153.6,4.97002308]
[1765801280030,0.002,3153.9,3153.7,0.405504]
[1765801280238,0.002,3153.9,3153.7,1.35752076]
[1765801280540,0.002,3153.9,3153.7,0.405504]
[1765801280740,0.002,3153.9,3153.8,0.75944442]
[1765801281438,0.002,3153.9,3153.8,0.88637998]
[1765801281947,0.002,3153.9,3153.8,4.05715808]
[1765801283260,0.002,3153.9,3153.8,3.29771366]
[1765801285258,0.0012,3153.9,3153.8,3.29771366]
[1765801288550,0.0012,3153.9,3153.8,3.29771366]
[1765801288935,0.0012,3153.9,3153.8,3.29871366]
[1765801292870,0.0012,3153.9,3153.8,4.39172687]
[1765801303361,0.0012,3153.9,3153.8,4.42343465]
[1765801308475,0.0004,3153.9,3153.8,4.42343465]
[1765801308660,0.0004,3153.9,3153.8,4.39172687]
[1765801312783,0.0004,3153.9,3153.8,4.89272687]
[1765801313368,0.0004,3153.9,3153.8,9.23562535]
[1765801320308,0.0004,3153.9,3153.8,9.81610064]
[1765801321004,0.0004,3153.9,3153.8,23.67136364]
[1765801321518,0.002,3154.0,3153.8,23.67136364]
[1765801321672,0.002,3154.4,3154.3,5.32887777]
[1765801321874,0.002,3154.4,3154.3,5.86158052]
[1765801322336,0.002,3154.4,3154.3,5.98846012]
[1765801322793,0.002,3154.4,3154.3,9.12703286]
[1765801327249,0.002,3154.4,3154.3,29.95332834]
[1765801327535,0.002,3154.4,3154.3,32.3750244]
[1765801327704,0.002,3154.4,3154.3,31.98164517]
[1765801328822,0.002,3154.4,3154.3,31.97452893]
[1765801329199,0.002,3154.4,3154.3,32.36790816]
[1765801329923,0.0012,3155.0,3154.9,4.74484436]
[1765801330124,0.0012,3155.0,3154.9,6.30080409]
[1765801330590,0.0012,3155.0,3154.9,6.4276515]
[1765801331606,0.0012,3155.0,3154.9,9.59732407]
[1765801331807,0.0004,3155.0,3154.9,9.59732407]
[1765801334496,0.0004,3155.0,3154.9,9.9907033]
[1765801334825,0.0004,3155.0,3154.9,9.59732407]
[1765801340298,0.0004,3155.0,3154.9,32.07327607]
[1765801340640,0.0004,3155.0,3154.9,11.49480607]
[1765801340797,0.0004,3155.0,3154.9,4.85247971]
[1765801341907,0.0004,3155.0,3154.9,4.35147971]
[1765801342215,0.0004,3155.0,3154.9,3.16967257]
[1765801342731,0.0004,3155.0,3154.9,3.57517657]
[1765801346219,0.0004,3155.0,3154.9,3.60687329]
[1765801349110,0.0004,3155.0,3154.9,3.57517657]
[1765801349810,0.0004,3155.0,3154.6,3.16992056]
[1765801350008,0.0004,3155.0,3154.4,3.17015425]
[1765801350243,0.0004,3155.0,3154.6,3.16990365]
[1765801350442,0.0004,3155.0,3154.5,3.1700271]
[1765801350637,0.0004,3155.0,3154.4,3.17013237]
[1765801350805,0.0004,3155.0,3154.4,3.17013231]
[1765801351011,0.0004,3155.0,3154.9,0.001]
[1765801352743,0.0004,3155.0,3154.9,0.406504]
[1765801354533,0.0004,3155.0,3154.9,3.57617657]
[1765801355042,0.0016,3155.2,3154.9,6.74584914]
[1765801364851,0.0016,3155.2,3154.9,3.57617657]
[1765801365757,0.0016,3155.2,3154.9,6.74584914]
[1765801377261,0.0016,3155.2,3155.0,0.67458491]
[1765801378055,0.0016,3155.2,3155.1,5.35897152]
[1765801378236,0.0008,3155.2,3155.1,8.52844316]
[1765801378437,0.0008,3155.2,3155.1,8.49674845]
[1765801382401,0.0008,3155.2,3155.1,8.99774845]
[1765801382552,0.0008,3155.2,3155.1,9.78103855]
[1765801382876,0.0008,3155.2,3155.1,10.28203855]
[1765801385970,0.0008,3155.2,3155.1,9.78103855]
[1765801386136,0.0008,3155.2,3155.1,10.28203855]
[1765801389942,0.0008,3155.2,3155.1,5.53423703]
[1765801390473,0.0008,3155.2,3155.1,5.93974103]
[1765801391075,0.0008,3155.2,3155.1,5.97143574]
[1765801393577,0.0008,3155.2,3155.1,5.47143574]
[1765801393774,0.0008,3155.2,3155.1,3.57497564]
[1765801394274,0.0008,3155.2,3155.1,4.15545093]
[1765801394573,0.0008,3155.2,3155.1,3.74994693]
[1765801394772,0.0008,3155.2,3155.0,0.001]
[1765801394939,0.0008,3155.2,3155.1,3.16947164]
[1765801395776,0.0008,3155.2,3155.0,0.001]
[1765801398473,0.0008,3155.2,3155.0,3.1705721]
[1765801400175,0.0008,3155.2,3155.0,6.3401442]
[1765801401782,0.0004,3155.4,3155.1,0.03169471]
[1765801402553,0.0004,3155.4,3155.1,0.405504]
[1765801403156,0.0004,3155.4,3155.2,3.16937119]
[1765801403848,0.0004,3155.4,3155.2,4.15535048]
[1765801404072,0.0004,3155.4,3155.2,5.48184745]
[1765801404672,0.0004,3155.4,3155.2,5.51354116]
[1765801406286,0.0004,3155.4,3155.2,5.48184745]
[1765801408987,0.0004,3155.4,3155.2,5.07634345]
[1765801409158,0.0004,3155.4,3155.2,3.74984648]
[1765801409585,0.0004,3155.4,3155.2,4.15535048]
[1765801409792,0.0004,3155.4,3155.2,3.74984648]
[1765801410385,0.0004,3155.4,3155.2,4.15535048]
[1765801410569,0.0004,3155.4,3155.2,4.8879324]
[1765801422792,0.0004,3155.4,3155.2,3.57487519]
[1765801424787,0.0012,3155.3,3155.2,3.57487519]
[1765801425915,0.0012,3155.3,3155.1,3.1704142]
[1765801426088,0.0012,3155.3,3155.1,0.001]
[1765801426282,0.0012,3155.3,3155.1,3.17042291]
[1765801428708,0.0012,3155.3,3155.1,0.001]
[1765801441632,0.0012,3155.3,3155.1,0.67576482]
[1765801442462,0.0012,3155.3,3155.1,0.001]
[1765801448136,0.0004,3155.3,3155.1,0.001]
[1765801448634,0.0004,3155.3,3155.2,3.57487519]
[1765801449645,0.0004,3155.3,3155.2,3.16937119]
[1765801450617,0.0004,3155.3,3155.1,6.33994302]
[1765801450806,0.0004,3155.3,3155.2,0.6840943]
[1765801451516,0.0004,3155.3,3155.2,1.0895983]
[1765801453237,0.0004,3155.3,3155.2,4.25896949]
[1765801453844,0.0004,3155.3,3155.2,4.83944478]
[1765801456356,0.0004,3155.3,3155.2,4.87113849]
[1765801456525,0.0004,3155.3,3155.2,11.15823649]
[1765801456730,0.0004,3155.3,3155.2,11.12654278]
[1765801459449,0.0004,3155.3,3155.2,30.53972678]
[1765801459821,0.0004,3155.3,3155.2,20.80301278]
[1765801460236,0.0004,3155.3,3155.2,21.30301278]
[1765801460645,0.0004,3155.3,3155.2,4.43394078]
[1765801460833,0.0004,3155.3,3155.2,3.16937119]
[1765801461628,0.0004,3155.3,3155.2,3.74984648]
[1765801462043,0.0004,3155.3,3155.2,4.15535048]
[1765801463239,0.0004,3155.3,3155.1,0.001]
[1765801470433,0.0004,3155.3,3155.1,6.74544728]
[1765801470636,0.0004,3155.3,3155.2,1.08014873]
[1765801471154,0.0004,3155.3,3155.2,1.58014873]
[1765801471353,0.002,3155.7,3155.2,1.58014873]
[1765801471354,0.002,3155.7,3155.3,0.405504]
[1765801471658,0.002,3155.7,3155.4,0.0316917]
[1765801471830,0.002,3155.7,3155.1,6.33994328]
[1765801471831,4.3418255,3155.6,3155.1,0.001]
[1765801472029,0.43438255,3155.5,3155.1,0.001]
[1765801472262,0.002,3155.7,3155.1,0.001]
[1765801473259,4.3418255,3155.6,3155.1,0.001]
[1765801474745,3.16906987,3155.5,3155.1,0.001]
[1765801475146,3.1690031,3155.6,3155.1,0.001]
[1765801478170,6.3380062,3155.6,3155.1,0.001]
[1765801478373,0.68400062,3155.5,3155.1,0.001]
[1765801479074,3.16917031,3155.4,3155.1,0.001]
[1765801480572,6.33834062,3155.4,3155.1,0.001]
[1765801480963,10.68016612,3155.4,3155.1,0.001]
[1765801481385,10.68216612,3155.4,3155.1,0.001]
[1765801481686,1.13661667,3155.3,3155.1,0.001]
[1765801483080,3.16937119,3155.2,3155.1,0.001]
[1765801490784,1.63661667,3155.3,3155.1,0.001]
[1765801490972,0.5,3155.3,3155.1,0.001]
[1765801491374,3.66929693,3155.3,3155.1,0.001]
[1765801491578,0.5,3155.3,3155.1,0.001]
[1765801492089,3.17120239,3155.4,3155.1,0.001]
[1765801492990,0.002,3155.4,3155.1,0.001]
[1765801493187,0.63620583,3155.4,3155.1,0.001]
[1765801494277,0.002,3155.4,3155.1,0.001]
[1765801494766,0.0012,3155.4,3155.1,0.001]
[1765801498768,4.34190631,3155.3,3155.1,0.001]
[1765801498974,4.84190631,3155.3,3155.1,0.001]
[1765801500291,3.16937119,3155.2,3155.1,0.001]
[1765801500497,5.31488537,3155.2,3155.1,0.001]
[1765801501779,10.14411861,3155.2,3155.1,0.001]
[1765801502202,10.14411861,3155.2,3155.0,0.001]
[1765801502203,0.58047529,3155.1,3155.0,0.001]
[1765801502374,0.58047529,3155.1,3154.9,0.001]
[1765801502375,30.58047529,3155.0,3154.9,0.001]
[1765801502696,8.00807842,3155.0,3154.9,0.001]
[1765801502882,0.58047529,3154.9,3154.0,0.001]
[1765801503082,4.34190631,3154.1,3154.0,0.001]
[1765801503282,4.84190631,3154.1,3154.0,0.001]
[1765801505208,8.01238283,3154.1,3154.0,0.001]
[1765801505580,0.5,3154.1,3154.0,0.001]
[1765801507080,0.501,3154.4,3154.0,0.001]
[1765801509021,0.01267307,3155.2,3154.0,0.001]
[1765801509022,0.501,3154.9,3154.0,0.001]
[1765801509310,0.501,3154.9,3154.1,0.405504]
[1765801510889,3.67070858,3154.9,3154.3,0.405504]
[1765801511108,3.67070858,3154.9,3154.3,1.08013277]
[1765801512800,0.501,3154.9,3154.4,3.17017499]
[1765801515523,3.67067692,3154.9,3154.4,3.17017499]
[1765801515730,0.501,3154.9,3154.4,3.17017499]
[1765801516609,3.67068152,3154.9,3154.4,3.17017499]
[1765801516923,0.501,3154.9,3154.4,3.91224101]
[1765801517908,0.5002,3154.9,3154.4,3.91224101]
[1765801518602,3.66991616,3154.9,3154.4,3.91224101]
[1765801518806,3.66991616,3154.9,3154.4,3.17017499]
[1765801519428,3.67191616,3154.9,3154.4,3.17017499]
[1765801520433,3.67191616,3154.9,3154.3,3.57573369]
[1765801522414,0.5022,3154.9,3154.3,6.74600918]
[1765801523532,3.6718948,3154.9,3154.3,3.57573369]
[1765801523742,11.18349591,3154.9,3154.2,3.17034916]
[1765801524036,8.01380111,3154.9,3154.3,3.17023985]
[1765801524426,8.01380111,3154.9,3154.1,0.405504]
[1765801524601,3.6718948,3154.9,3154.1,0.98597929]
[1765801524809,3.6718948,3154.9,3154.3,0.405504]
[1765801524810,0.5022,3154.9,3154.3,0.405504]
[1765801525406,3.67187427,3154.9,3154.3,0.405504]
[1765801526038,0.5022,3154.9,3154.3,0.405504]
[1765801527442,0.5022,3154.9,3154.4,3.17017499]
[1765801527808,3.67187873,3154.9,3154.4,3.17017499]
[1765801528009,3.67187873,3154.9,3154.4,3.91805592]
[1765801528211,4.34190631,3154.8,3154.0,0.58147529]
[1765801528638,4.34190631,3154.8,3154.3,3.17026679]
[1765801528938,0.5022,3154.9,3154.3,3.17026679]
[1765801529141,3.67187948,3154.9,3154.3,3.17026679]
[1765801529942,0.5022,3154.9,3154.2,3.17035979]
[1765801530109,3.67187649,3154.9,3154.2,6.65787177]
[1765801531221,3.67187649,3154.9,3154.2,3.48749577]
[1765801532340,4.3434595,3154.8,3154.1,0.405504]
[1765801532725,4.3434595,3154.8,3154.2,3.17037085]
[1765801532911,3.67187649,3154.9,3154.2,3.17037085]
[1765801534722,0.5022,3154.9,3154.0,6.34215408]
[1765801534917,0.5022,3154.9,3154.1,1.03981941]
[1765801535838,0.5022,3154.9,3154.1,1.07152417]
[1765801537134,0.002,3154.9,3154.2,6.841752]
[1765801537644,3.17169648,3154.9,3154.2,3.170376]
[1765801537813,3.17169648,3154.9,3154.3,0.78597314]
[1765801538346,3.17169648,3154.9,3154.3,0.38046914]
[1765801538642,3.17169648,3154.9,3154.4,0.405504]
[1765801539444,0.002,3154.9,3154.4,3.17009246]
[1765801541328,0.0012,3154.9,3154.4,0.405504]
[1765801541528,0.0012,3154.9,3154.5,0.67460424]
[1765801543226,0.0012,3154.9,3154.4,0.405504]
[1765801543432,0.0012,3154.9,3154.4,3.57563045]
[1765801544352,0.0012,3154.9,3154.3,3.57672586]
[1765801544540,4.8456595,3154.9,3154.3,0.406504]
[1765801544745,4.8456595,3154.9,3154.3,0.001]
[1765801545337,4.3434595,3154.6,3154.3,0.001]
[1765801547423,3.17007449,3154.5,3154.3,0.001]
[1765801547624,7.51347964,3154.6,3154.3,0.001]
[1765801548254,5.96539756,3154.9,3154.3,0.001]
[1765801548458,3.16983211,3154.8,3154.3,0.001]
[1765801548954,0.5022,3154.9,3154.3,0.001]
[1765801549324,0.5022,3154.9,3154.4,0.405504]
[1765801549523,0.5022,3154.9,3154.4,1.1207599]
[1765801550135,0.0012,3154.9,3154.4,1.1207599]
[1765801551256,0.0012,3154.9,3154.4,0.7152559]
[1765801551462,6.3406053,3154.9,3154.3,0.406504]
[1765801555758,6.3406053,3154.9,3154.3,0.001]
[1765801557363,4.3434595,3154.7,3154.3,0.001]
[1765801558862,7.51343049,3154.7,3154.3,0.001]
[1765801559462,3.16997099,3154.7,3154.3,0.001]
[1765801561244,3.85416734,3154.7,3154.3,0.001]
[1765801563153,0.68419635,3154.7,3154.3,0.001]
[1765801563473,3.16987671,3154.7,3154.3,0.001]
[1765801564443,3.16907671,3154.7,3154.3,0.001]
[1765801565055,0.501,3154.8,3154.3,0.001]
[1765801566180,3.67077687,3154.8,3154.3,0.001]
[1765801566760,0.501,3154.8,3154.3,0.001]
[1765801568338,0.501,3154.8,3154.3,0.67573666]
[1765801568885,0.0012,3154.9,3154.4,0.405504]
[1765801569179,0.0012,3154.9,3154.6,0.405504]
[1765801570153,0.0012,3154.9,3154.6,0.98597929]
[1765801571269,0.0012,3154.9,3154.8,0.405504]
[1765801571475,0.0012,3154.9,3154.8,1.1205795]
[1765801574547,0.0012,3154.9,3154.8,4.29035254]
[1765801575072,0.0012,3154.9,3154.8,4.79035254]
[1765801576244,0.0012,3154.9,3154.8,4.29035254]
[1765801587745,0.0004,3154.9,3154.8,4.29035254]
[1765801605719,0.0004,3154.9,3154.8,3.88484854]
[1765801605889,0.0004,3154.9,3154.8,3.16977304]
[1765801607665,0.0004,3154.9,3154.6,0.001]
[1765801609630,4.35459489,3154.7,3154.6,0.001]
[1765801610629,4.48152683,3154.7,3154.6,0.001]
[1765801610831,5.06200212,3154.7,3154.6,0.001]
[1765801611037,6.20266425,3154.7,3154.6,0.001]
[1765801613344,13.71445959,3154.7,3154.6,0.001]
[1765801613505,0.58047529,3154.6,3154.3,0.001]
[1765801613701,24.20630518,3154.4,3154.3,0.001]
[1765801614320,0.58047529,3154.3,3154.0,0.001]
[1765801614502,0.01267307,3154.1,3154.0,0.001]
[1765801614714,4.93507018,3154.1,3154.0,0.001]
[1765801615321,3.76362488,3154.1,3154.0,0.001]
[1765801615629,8.59287363,3154.1,3154.0,0.001]
[1765801616627,8.71983337,3154.1,3154.0,0.001]
[1765801616933,9.95947226,3154.1,3154.0,0.001]
[1765801620243,4.53707515,3154.1,3154.0,0.001]
[1765801620441,4.91111541,3154.1,3154.0,0.001]
[1765801621640,14.31531535,3154.1,3154.0,0.001]
[1765801622031,29.36959429,3154.0,3153.0,0.001]
[1765801622231,3.75135394,3153.7,3153.0,0.001]
[1765801622741,4.25235394,3153.7,3153.0,0.001]
[1765801622920,4.37934955,3153.7,3153.0,0.001]
[1765801623642,10.773135,3153.3,3153.0,0.001]
[1765801623845,8.69675242,3153.1,3152.9,0.001]
[1765801624142,0.97782277,3153.0,3152.9,0.001]
[1765801624334,4.27642317,3153.0,3152.9,0.001]
[1765801624949,4.28909624,3153.0,3152.9,0.001]
[1765801629148,4.28909624,3153.0,3152.9,0.001]
[1765801630363,4.86957153,3153.0,3152.9,0.001]
[1765801631867,23.69969353,3153.0,3152.9,0.001]
[1765801632054,15.47174253,3153.0,3152.9,0.001]
[1765801632245,14.68909053,3153.0,3152.9,0.001]
[1765801634471,14.68829053,3153.0,3152.9,0.001]
[1765801635069,14.69029053,3153.0,3152.9,0.001]
[1765801638346,14.69029053,3153.0,3152.8,0.001]
[1765801638347,0.58047529,3152.9,3152.8,0.001]
[1765801638552,32.56483973,3152.9,3152.7,0.001]
[1765801638748,12.96268459,3152.8,3152.7,0.001]
[1765801638955,13.91536646,3152.8,3152.7,0.001]
[1765801644782,4.71761404,3152.8,3152.7,0.001]
[1765801644950,0.95268187,3152.8,3152.7,0.001]
[1765801645152,0.501,3152.8,3152.7,0.001]
[1765801645466,3.67278381,3152.8,3152.7,0.001]
[1765801649188,3.17178381,3152.8,3152.7,0.001]
[1765801649390,3.67271691,3152.9,3152.7,0.001]
[1765801649887,4.34837621,3152.8,3152.7,0.001]
[1765801650181,4.36104928,3152.8,3152.7,0.001]
[1765801650391,7.53283309,3152.8,3152.7,0.001]
[1765801650572,13.00323161,3152.8,3152.7,0.001]
[1765801650893,13.9892109,3152.8,3152.7,0.001]
[1765801651692,0.58047529,3152.7,3152.6,0.001]
[1765801653060,3.7523597,3152.7,3152.6,0.001]
[1765801655999,3.7523597,3152.7,3151.4,0.001]
[1765801656168,4.34837621,3151.7,3151.4,0.001]
[1765801656370,4.84937621,3151.7,3151.4,0.001]
[1765801656760,0.501,3151.7,3151.4,0.001]
[1765801657593,0.5002,3151.7,3151.4,0.001]
[1765801659615,3.17250089,3152.1,3151.4,0.001]
[1765801659775,0.501,3152.0,3151.4,0.001]
[1765801661703,0.501,3152.0,3151.6,0.406504]
[1765801661890,0.501,3152.0,3151.7,0.67526883]
[1765801662795,4.34837621,3151.9,3151.7,0.67526883]
[1765801662964,4.34837621,3151.9,3151.6,0.001]
[1765801663790,3.17279015,3151.8,3151.6,0.001]
[1765801665676,3.67362425,3152.0,3151.6,0.001]
[1765801666600,0.59314836,3152.4,3151.6,0.001]
[1765801666796,0.501,3152.3,3151.6,0.001]
[1765801667729,3.17238753,3152.2,3151.6,0.001]
[1765801670305,6.34477506,3152.2,3151.6,0.001]
[1765801670790,4.35164588,3152.0,3151.6,0.001]
[1765801672010,0.501,3151.9,3151.6,0.001]
[1765801672592,3.67376554,3151.9,3151.6,0.001]
[1765801677914,6.84653108,3151.9,3151.6,0.001]
[1765801678690,3.67376554,3151.9,3151.6,0.001]
[1765801680920,3.67296554,3151.9,3151.6,0.001]
[1765801681129,6.84573108,3151.9,3151.6,0.001]
[1765801681328,0.01267307,3151.7,3151.6,0.001]
[1765801681618,4.94777554,3151.7,3151.6,0.001]
[1765801682886,8.12066636,3151.7,3151.6,0.001]
[1765801683412,3.76603918,3151.7,3151.6,0.001]
[1765801684121,4.26703918,3151.7,3151.6,0.001]
[1765801684285,5.55860561,3151.7,3151.6,0.001]
[1765801687819,3.75336611,3151.7,3151.6,0.001]
[1765801688026,4.25436611,3151.7,3151.6,0.001]
[1765801690294,3.67389082,3151.7,3151.6,0.001]
[1765801690691,0.58047529,3151.9,3151.6,0.001]
[1765801690915,0.501,3151.8,3151.6,0.001]
[1765801694494,0.501,3151.9,3151.6,0.001]
[1765801695928,0.002,3152.0,3151.6,0.001]
[1765801698715,0.002,3151.9,3151.6,0.001]
[1765801699027,0.002,3151.9,3151.6,0.406504]
[1765801699327,0.002,3151.9,3151.7,1.42814077]
[1765801699828,0.002,3151.9,3151.6,0.406504]
[1765801700638,0.002,3151.9,3151.6,0.98697929]
[1765801700840,0.002,3151.9,3151.8,0.405504]
[1765801704346,0.0012,3151.9,3151.8,3.57829415]
[1765801708647,0.0012,3151.9,3151.8,4.15876944]
[1765801708850,0.0012,3151.9,3151.8,5.46737361]
[1765801709553,0.0012,3151.9,3151.8,5.43564571]
[1765801716660,0.0012,3151.9,3151.8,5.43664571]
[1765801717727,0.0012,3151.9,3151.8,5.93764571]
[1765801724566,0.0012,3151.9,3151.8,6.0646385]
[1765801726674,0.0012,3151.9,3151.8,3.30078294]
[1765801726969,0.0012,3151.9,3151.8,0.001]
[1765801727466,0.0004,3151.9,3151.8,0.001]
[1765801737683,4.35044198,3151.9,3151.8,0.001]
[1765801737886,3.75356477,3151.9,3151.8,0.001]
[1765801738054,4.89196134,3151.9,3151.8,0.001]
[1765801740695,9.24200332,3151.9,3151.8,0.001]
[1765801741498,26.56487434,3151.9,3151.8,0.001]
[1765801741697,5.39296134,3151.9,3151.8,0.001]
[1765801742296,16.44738534,3151.9,3151.8,0.001]
[1765801743598,20.80129181,3151.9,3151.8,0.001]
[1765801744717,25.15519828,3151.9,3151.8,0.001]
[1765801746306,20.80129181,3151.9,3151.8,0.001]
[1765801750912,5.39216134,3151.9,3151.8,0.001]
[1765801751307,3.2993452,3151.9,3151.8,0.001]
[1765801751508,3.8013452,3151.9,3151.8,0.001]
[1765801751711,4.38182049,3151.9,3151.8,0.001]
[1765801753622,4.38382049,3151.9,3151.8,0.001]
[1765801756224,4.39649356,3151.9,3151.8,0.001]
[1765801756419,5.15360181,3151.9,3151.8,0.001]
[1765801758617,25.00062581,3151.9,3151.8,0.001]
[1765801758922,17.09912081,3151.9,3151.8,0.001]
[1765801759329,16.51864552,3151.9,3151.8,0.001]
[1765801759628,15.70868352,3151.9,3151.8,0.001]
[1765801760925,4.57312652,3151.9,3151.8,0.001]
[1765801762806,5.17213752,3151.9,3151.8,0.001]
[1765801769916,24.93598752,3151.9,3151.8,0.001]
[1765801770316,20.31075552,3151.9,3151.8,0.001]
[1765801770516,19.91320352,3151.9,3151.8,0.001]
[1765801770942,10.46977852,3151.9,3151.8,0.001]
[1765801772646,5.17213752,3151.9,3151.8,0.001]
[1765801774020,5.17133752,3151.9,3151.8,0.001]
[1765801777625,9.52524399,3151.9,3151.8,0.001]
[1765801782943,5.17133752,3151.9,3151.8,0.001]
[1765801783261,4.41422927,3151.9,3151.8,0.001]
[1765801794862,4.4015562,3151.9,3151.8,0.001]
[1765801795069,4.27450048,3151.9,3151.8,0.001]
[1765801795476,4.28717355,3151.9,3151.8,0.001]
[1765801797374,4.28637355,3151.9,3151.8,0.001]
[1765801800251,4.27370048,3151.9,3151.8,0.001]
[1765801801067,4.28637355,3151.9,3151.8,0.001]
[1765801815767,5.04517501,3151.9,3151.8,0.001]
[1765801819199,4.28637355,3151.9,3151.8,0.001]
[1765801820503,4.28557355,3151.9,3151.8,0.001]
[1765801826620,3.77090048,3151.9,3151.8,0.001]
[1765801826786,4.27190048,3151.9,3151.8,0.001]
[1765801843942,4.27110048,3151.9,3151.8,0.001]
[1765801846035,4.39812836,3151.9,3151.8,0.001]
[1765801850420,1.22903888,3151.9,3151.8,0.001]
[1765801851538,4.40172836,3151.9,3151.8,0.001]
[1765801856755,1.22903888,3151.9,3151.8,0.001]
[1765801857326,4.40172836,3151.9,3151.8,0.001]
[1765801857723,1.22903888,3151.9,3151.8,0.001]
[1765801860754,4.40172836,3151.9,3151.8,0.001]
[1765801862448,1.22903888,3151.9,3151.8,0.001]
[1765801862755,0.601011,3151.9,3151.8,0.001]
[1765801862998,0.601011,3151.9,3151.8,5.36510505]
[1765801863159,0.601011,3151.9,3151.8,1.04439912]
[1765801863335,0.601011,3151.9,3151.8,5.89783295]
[1765801863532,0.601011,3151.9,3151.8,10.82111691]
[1765801863731,0.002,3152.0,3151.9,0.98597929]
[1765801863929,0.002,3152.8,3152.1,0.98597929]
[1765801864166,0.002,3152.8,3152.7,4.34762125]
[1765801864530,0.002,3152.8,3152.6,0.501]
[1765801864765,0.002,3152.8,3152.7,4.34762125]
[1765801865069,0.002,3152.8,3152.7,4.47458099]
[1765801865250,0.002,3152.8,3152.7,4.97213909]
[1765801866067,0.002,3152.8,3152.7,13.47762404]
[1765801867161,0.0012,3152.8,3152.7,9.0505275]
[1765801867371,0.0012,3152.8,3152.7,0.62451784]
[1765801867532,0.0012,3152.8,3152.7,0.4975581]
[1765801868163,0.0012,3152.8,3152.7,3.66944251]
[1765801868471,0.0012,3152.8,3152.7,8.01735445]
[1765801871247,0.0012,3152.8,3152.7,8.42285845]
[1765801873442,0.0012,3152.8,3152.7,4.07494651]
[1765801875040,0.0012,3152.8,3152.7,8.42285845]
[1765801875664,0.0012,3152.8,3152.7,4.20190907]
[1765801876076,0.0012,3152.8,3152.7,8.54982101]
[1765801876837,0.0012,3152.8,3152.7,9.1302963]
[1765801878017,0.0012,3152.8,3152.7,4.78238436]
[1765801878139,0.0012,3152.8,3152.7,3.29884697]
[1765801878340,0.0012,3152.8,3152.7,3.17188441]
[1765801878982,0.0012,3152.8,3152.7,0.405504]
[1765801879482,0.0012,3152.8,3152.7,3.57738841]
[1765801879770,0.0012,3152.8,3152.7,7.92530035]
[1765801879949,0.0012,3152.8,3152.7,9.04782613]